{"text_format":"2","workbook":"xlsx","n_sheets":4,"sheets":["Zone-Abstract","Clash","Block-Status","Database"],"not_rendered":{"charts":0,"images":0,"macros":0,"external_links":0,"defined_names":8,"comments":0,"pivot_tables":0},"unopened":[],"bounds":{"document_bytes":16777216,"sheet_cells":100000,"run_cost":"one","rows_first":2000,"rows_last":500,"rows_between":2000,"halvings":0,"cell_chars":16384,"cell_head_chars":4096},"cells_cut":0,"cells_raw":0,"read":"whole","date_system":"1900"}

{"sheet":"Zone-Abstract","index":0,"n_rows":15,"n_cols":27,"rows_kept":15,"cut":false,"hidden":false,"merged":[[0,20,0,25],[0,2,0,7],[0,0,1,0],[0,1,1,1],[0,8,0,13],[0,14,0,19]]}
["Zone","Blocks","Water",{"$nulls":5},"Reuse",{"$nulls":5},"Storm",{"$nulls":5},"Sewer"]
[null,null,"Design","Design Approved","Clash","Clash Approved","GFC","GFC Approved","Design","Design Approved","Clash","Clash Approved","GFC","GFC Approved","Design","Design Approved","Clash","Clash Approved","GFC","GFC Approved","Design","Design Approved","Clash","Clash Approved","GFC","GFC Approved","Zone"]
["Zone-1A",{"$f":"COUNTIF(OFFSET(Agency_Zone_Block,0,1,,1),A3)","v":5},{"$f":"COUNTIFS(OFFSET(Block_Status,0,1,,1),$A3,OFFSET(Block_Status,0,4,,1),C$2)","v":0},0,0,0,0,0,{"$f":"COUNTIFS(OFFSET(Block_Status,0,1,,1),$A3,OFFSET(Block_Status,0,5,,1),I$2)","v":0},0,0,{"$f":"COUNTIFS(OFFSET(Block_Status,0,1,,1),$A3,OFFSET(Block_Status,0,5,,1),L$2)","v":0},0,0,{"$f":"COUNTIFS(OFFSET(Block_Status,0,1,,1),$A3,OFFSET(Block_Status,0,6,,1),O$2)","v":0},0,{"$f":"COUNTIFS(OFFSET(Block_Status,0,1,,1),$A3,OFFSET(Block_Status,0,6,,1),Q$2)","v":0},0,0,{"$f":"COUNTIFS(OFFSET(Block_Status,0,1,,1),$A3,OFFSET(Block_Status,0,6,,1),T$2)","v":0},{"$f":"COUNTIFS(OFFSET(Block_Status,0,1,,1),$A3,OFFSET(Block_Status,0,7,,1),U$2)","v":0},{"$f":"COUNTIFS(OFFSET(Block_Status,0,1,,1),$A3,OFFSET(Block_Status,0,7,,1),V$2)","v":0},0,0,{"$f":"COUNTIFS(OFFSET(Block_Status,0,1,,1),$A3,OFFSET(Block_Status,0,7,,1),Y$2)","v":0},0,{"$f":"TRIM(MID(A3,6,3))","v":"1A"}]
["Zone-1B",7,{"$f":"COUNTIFS(OFFSET(Block_Status,0,1,,1),$A4,OFFSET(Block_Status,0,4,,1),C$2)","v":0},0,0,0,0,0,0,0,0,0,0,0,0,0,0,0,0,0,0,0,0,0,0,0,{"$f":"TRIM(MID(A4,6,3))","v":"1B"}]
["Zone-2A",5,0,0,0,0,0,0,0,0,0,0,0,0,0,0,0,0,0,0,0,0,0,0,0,0,"2A"]
["Zone-2B",5,0,0,0,0,0,0,0,0,0,0,0,0,0,0,0,0,0,0,0,0,0,0,0,0,"2B"]
["Zone-3A",4,0,0,0,0,0,0,0,0,0,0,0,0,0,0,0,0,0,0,0,0,0,0,0,0,"3A"]
["Zone-4",7,0,0,0,0,0,0,0,0,0,0,0,0,0,0,0,0,0,0,0,0,0,0,0,0,"4"]
["Zone-5A",5,0,0,0,0,0,0,0,0,0,0,0,0,0,0,0,0,0,0,0,0,0,0,0,0,"5A"]
["Zone-5B",4,0,0,0,0,0,0,0,0,0,0,0,0,0,0,0,0,0,0,0,0,0,0,0,0,"5B"]
["Zone-5C",4,0,0,0,0,0,0,0,0,0,0,0,0,0,0,0,0,0,0,0,0,0,0,0,0,"5C"]
["Zone-5D",4,0,0,0,0,0,0,0,0,0,0,0,0,0,0,0,0,0,0,0,0,0,0,0,0,"5D"]
["Zone-10",10,0,0,0,0,0,0,0,0,0,0,0,0,0,0,0,0,0,0,0,0,0,0,0,0,"10"]
["Zone-12",20,0,0,0,0,0,0,0,0,0,0,0,0,0,0,0,0,0,0,0,0,0,0,0,0,"12"]
[{"$f":"COUNTA(A3:A14)","v":12},{"$f":"SUM(B3:B14)","v":80},{"$f":"SUM(C3:C14)","v":0},0,0,0,0,0,0,0,0,0,0,0,0,0,0,0,0,0,0,0,0,0,0,0]

{"sheet":"Clash","index":1,"n_rows":82,"n_cols":16,"rows_kept":82,"cut":false,"hidden":true,"merged":[[0,10,0,15],[0,0,1,0],[0,1,1,1],[0,2,1,2],[0,3,1,3],[0,4,0,9]]}
["Agency","Zone","Block","Zone-Block","Clash",{"$nulls":5},"Clash Approved"]
[{"$nulls":4},"Water","Reuse","Storm","Sewer","Power","Total","Water","Reuse","Storm","Sewer","Power","Total"]
["BSR","Zone-1A",8,{"$f":"B3&\"-\"&C3","v":"Zone-1A-8"},{"$f":"IFERROR(VLOOKUP(VLOOKUP($D3,OFFSET(Block_Status,0,3,,6),2,FALSE),Utility_Status,2,FALSE),0)>=3","v":false},{"$f":"IFERROR(VLOOKUP(VLOOKUP($D3,OFFSET(Block_Status,0,3,,6),3,FALSE),Utility_Status,2,FALSE),0)>=3","v":false},{"$f":"IFERROR(VLOOKUP(VLOOKUP($D3,OFFSET(Block_Status,0,3,,6),4,FALSE),Utility_Status,2,FALSE),0)>=3","v":false},{"$f":"IFERROR(VLOOKUP(VLOOKUP($D3,OFFSET(Block_Status,0,3,,6),5,FALSE),Utility_Status,2,FALSE),0)>=3","v":false},{"$f":"IFERROR(VLOOKUP(VLOOKUP($D3,OFFSET(Block_Status,0,3,,6),6,FALSE),Utility_Status,2,FALSE),0)>=3","v":false},{"$f":"AND(E3:I3)","v":false},{"$f":"IFERROR(VLOOKUP(VLOOKUP($D3,OFFSET(Block_Status,0,3,,6),2,FALSE),Utility_Status,2,FALSE),0)>=4","v":false},{"$f":"IFERROR(VLOOKUP(VLOOKUP($D3,OFFSET(Block_Status,0,3,,6),3,FALSE),Utility_Status,2,FALSE),0)>=4","v":false},{"$f":"IFERROR(VLOOKUP(VLOOKUP($D3,OFFSET(Block_Status,0,3,,6),4,FALSE),Utility_Status,2,FALSE),0)>=4","v":false},{"$f":"IFERROR(VLOOKUP(VLOOKUP($D3,OFFSET(Block_Status,0,3,,6),5,FALSE),Utility_Status,2,FALSE),0)>=4","v":false},{"$f":"IFERROR(VLOOKUP(VLOOKUP($D3,OFFSET(Block_Status,0,3,,6),6,FALSE),Utility_Status,2,FALSE),0)>=4","v":false},{"$f":"AND(K3:O3)","v":false}]
["BSR","Zone-1A",9,{"$f":"B4&\"-\"&C4","v":"Zone-1A-9"},false,false,false,false,false,{"$f":"AND(E4:I4)","v":false},false,false,false,false,false,{"$f":"AND(K4:O4)","v":false}]
["BSR","Zone-1A",10,"Zone-1A-10",false,false,false,false,false,false,false,false,false,false,false,false]
["BSR","Zone-1A",11,"Zone-1A-11",false,false,false,false,false,false,false,false,false,false,false,false]
["BSR","Zone-1A",12,"Zone-1A-12",false,false,false,false,false,false,false,false,false,false,false,false]
["BSR","Zone-1B",1,"Zone-1B-1",false,false,false,false,false,false,false,false,false,false,false,false]
["BSR","Zone-1B",2,"Zone-1B-2",false,false,false,false,false,false,false,false,false,false,false,false]
["BSR","Zone-1B",3,"Zone-1B-3",false,false,false,false,false,false,false,false,false,false,false,false]
["BSR","Zone-1B",4,"Zone-1B-4",false,false,false,false,false,false,false,false,false,false,false,false]
["BSR","Zone-1B",5,"Zone-1B-5",false,false,false,false,false,false,false,false,false,false,false,false]
["BSR","Zone-1B",6,"Zone-1B-6",false,false,false,false,false,false,false,false,false,false,false,false]
["BSR","Zone-1B",7,"Zone-1B-7",false,false,false,false,false,false,false,false,false,false,false,false]
["BSR","Zone-2A",6,"Zone-2A-6",false,false,false,false,false,false,false,false,false,false,false,false]
["BSR","Zone-2A",7,"Zone-2A-7",false,false,false,false,false,false,false,false,false,false,false,false]
["BSR","Zone-2A",8,"Zone-2A-8",false,false,false,false,false,false,false,false,false,false,false,false]
["BSR","Zone-2A",9,"Zone-2A-9",false,false,false,false,false,false,false,false,false,false,false,false]
["BSR","Zone-2A",10,"Zone-2A-10",false,false,false,false,false,false,false,false,false,false,false,false]
["BSR","Zone-2B",1,"Zone-2B-1",false,false,false,false,false,false,false,false,false,false,false,false]
["BSR","Zone-2B",2,"Zone-2B-2",false,false,false,false,false,false,false,false,false,false,false,false]
["BSR","Zone-2B",3,"Zone-2B-3",false,false,false,false,false,false,false,false,false,false,false,false]
["BSR","Zone-2B",4,"Zone-2B-4",false,false,false,false,false,false,false,false,false,false,false,false]
["BSR","Zone-2B",5,"Zone-2B-5",false,false,false,false,false,false,false,false,false,false,false,false]
["BSR","Zone-5A",1,"Zone-5A-1",false,false,false,false,false,false,false,false,false,false,false,false]
["BSR","Zone-5A",2,"Zone-5A-2",false,false,false,false,false,false,false,false,false,false,false,false]
["BSR","Zone-5A",3,"Zone-5A-3",false,false,false,false,false,false,false,false,false,false,false,false]
["BSR","Zone-5A",4,"Zone-5A-4",false,false,false,false,false,false,false,false,false,false,false,false]
["BSR","Zone-5A",5,"Zone-5A-5",false,false,false,false,false,false,false,false,false,false,false,false]
["BSR","Zone-5C",1,"Zone-5C-1",false,false,false,false,false,false,false,false,false,false,false,false]
["BSR","Zone-5C",2,"Zone-5C-2",false,false,false,false,false,false,false,false,false,false,false,false]
["BSR","Zone-5C",3,"Zone-5C-3",false,false,false,false,false,false,false,false,false,false,false,false]
["BSR","Zone-5C",4,"Zone-5C-4",false,false,false,false,false,false,false,false,false,false,false,false]
["BSR","Zone-5D",1,"Zone-5D-1",false,false,false,false,false,false,false,false,false,false,false,false]
["BSR","Zone-5D",2,"Zone-5D-2",{"$f":"IFERROR(VLOOKUP(VLOOKUP($D35,OFFSET(Block_Status,0,3,,6),2,FALSE),Utility_Status,2,FALSE),0)>=3","v":false},{"$f":"IFERROR(VLOOKUP(VLOOKUP($D35,OFFSET(Block_Status,0,3,,6),3,FALSE),Utility_Status,2,FALSE),0)>=3","v":false},{"$f":"IFERROR(VLOOKUP(VLOOKUP($D35,OFFSET(Block_Status,0,3,,6),4,FALSE),Utility_Status,2,FALSE),0)>=3","v":false},{"$f":"IFERROR(VLOOKUP(VLOOKUP($D35,OFFSET(Block_Status,0,3,,6),5,FALSE),Utility_Status,2,FALSE),0)>=3","v":false},{"$f":"IFERROR(VLOOKUP(VLOOKUP($D35,OFFSET(Block_Status,0,3,,6),6,FALSE),Utility_Status,2,FALSE),0)>=3","v":false},false,{"$f":"IFERROR(VLOOKUP(VLOOKUP($D35,OFFSET(Block_Status,0,3,,6),2,FALSE),Utility_Status,2,FALSE),0)>=4","v":false},{"$f":"IFERROR(VLOOKUP(VLOOKUP($D35,OFFSET(Block_Status,0,3,,6),3,FALSE),Utility_Status,2,FALSE),0)>=4","v":false},{"$f":"IFERROR(VLOOKUP(VLOOKUP($D35,OFFSET(Block_Status,0,3,,6),4,FALSE),Utility_Status,2,FALSE),0)>=4","v":false},{"$f":"IFERROR(VLOOKUP(VLOOKUP($D35,OFFSET(Block_Status,0,3,,6),5,FALSE),Utility_Status,2,FALSE),0)>=4","v":false},{"$f":"IFERROR(VLOOKUP(VLOOKUP($D35,OFFSET(Block_Status,0,3,,6),6,FALSE),Utility_Status,2,FALSE),0)>=4","v":false},false]
["BSR","Zone-5D",3,"Zone-5D-3",false,false,false,false,false,false,false,false,false,false,false,false]
["BSR","Zone-5D",4,"Zone-5D-4",false,false,false,false,false,false,false,false,false,false,false,false]
["NCC","Zone-12",1,"Zone-12-1",false,false,false,false,false,false,false,false,false,false,false,false]
["NCC","Zone-12",2,"Zone-12-2",false,false,false,false,false,false,false,false,false,false,false,false]
["NCC","Zone-12",3,"Zone-12-3",false,false,false,false,false,false,false,false,false,false,false,false]
["NCC","Zone-12",4,"Zone-12-4",false,false,false,false,false,false,false,false,false,false,false,false]
["NCC","Zone-12",5,"Zone-12-5",false,false,false,false,false,false,false,false,false,false,false,false]
["NCC","Zone-12",6,"Zone-12-6",false,false,false,false,false,false,false,false,false,false,false,false]
["NCC","Zone-12",7,"Zone-12-7",false,false,false,false,false,false,false,false,false,false,false,false]
["NCC","Zone-12",8,"Zone-12-8",false,false,false,false,false,false,false,false,false,false,false,false]
["NCC","Zone-12",9,"Zone-12-9",false,false,false,false,false,false,false,false,false,false,false,false]
["NCC","Zone-12",10,"Zone-12-10",false,false,false,false,false,false,false,false,false,false,false,false]
["NCC","Zone-12",11,"Zone-12-11",false,false,false,false,false,false,false,false,false,false,false,false]
["NCC","Zone-12",12,"Zone-12-12",false,false,false,false,false,false,false,false,false,false,false,false]
["NCC","Zone-12",13,"Zone-12-13",false,false,false,false,false,false,false,false,false,false,false,false]
["NCC","Zone-12",14,"Zone-12-14",false,false,false,false,false,false,false,false,false,false,false,false]
["NCC","Zone-12",15,"Zone-12-15",false,false,false,false,false,false,false,false,false,false,false,false]
["NCC","Zone-12",16,"Zone-12-16",false,false,false,false,false,false,false,false,false,false,false,false]
["NCC","Zone-12",17,"Zone-12-17",false,false,false,false,false,false,false,false,false,false,false,false]
["NCC","Zone-12",18,"Zone-12-18",false,false,false,false,false,false,false,false,false,false,false,false]
["NCC","Zone-12",19,"Zone-12-19",false,false,false,false,false,false,false,false,false,false,false,false]
["NCC","Zone-12",20,"Zone-12-20",false,false,false,false,false,false,false,false,false,false,false,false]
["RVR","Zone-10",1,"Zone-10-1",false,false,false,false,false,false,false,false,false,false,false,false]
["RVR","Zone-10",2,"Zone-10-2",false,false,false,false,false,false,false,false,false,false,false,false]
["RVR","Zone-10",3,"Zone-10-3",false,false,false,false,false,false,false,false,false,false,false,false]
["RVR","Zone-10",4,"Zone-10-4",false,false,false,false,false,false,false,false,false,false,false,false]
["RVR","Zone-10",5,"Zone-10-5",false,false,false,false,false,false,false,false,false,false,false,false]
["RVR","Zone-10",6,"Zone-10-6",false,false,false,false,false,false,false,false,false,false,false,false]
["RVR","Zone-10",7,"Zone-10-7",false,false,false,false,false,false,false,false,false,false,false,false]
["RVR","Zone-10",8,"Zone-10-8",false,false,false,false,false,false,false,false,false,false,false,false]
["RVR","Zone-10",9,"Zone-10-9",false,false,false,false,false,false,false,false,false,false,false,false]
["RVR","Zone-10",10,"Zone-10-10",{"$f":"IFERROR(VLOOKUP(VLOOKUP($D67,OFFSET(Block_Status,0,3,,6),2,FALSE),Utility_Status,2,FALSE),0)>=3","v":false},{"$f":"IFERROR(VLOOKUP(VLOOKUP($D67,OFFSET(Block_Status,0,3,,6),3,FALSE),Utility_Status,2,FALSE),0)>=3","v":false},{"$f":"IFERROR(VLOOKUP(VLOOKUP($D67,OFFSET(Block_Status,0,3,,6),4,FALSE),Utility_Status,2,FALSE),0)>=3","v":false},{"$f":"IFERROR(VLOOKUP(VLOOKUP($D67,OFFSET(Block_Status,0,3,,6),5,FALSE),Utility_Status,2,FALSE),0)>=3","v":false},{"$f":"IFERROR(VLOOKUP(VLOOKUP($D67,OFFSET(Block_Status,0,3,,6),6,FALSE),Utility_Status,2,FALSE),0)>=3","v":false},false,{"$f":"IFERROR(VLOOKUP(VLOOKUP($D67,OFFSET(Block_Status,0,3,,6),2,FALSE),Utility_Status,2,FALSE),0)>=4","v":false},{"$f":"IFERROR(VLOOKUP(VLOOKUP($D67,OFFSET(Block_Status,0,3,,6),3,FALSE),Utility_Status,2,FALSE),0)>=4","v":false},{"$f":"IFERROR(VLOOKUP(VLOOKUP($D67,OFFSET(Block_Status,0,3,,6),4,FALSE),Utility_Status,2,FALSE),0)>=4","v":false},{"$f":"IFERROR(VLOOKUP(VLOOKUP($D67,OFFSET(Block_Status,0,3,,6),5,FALSE),Utility_Status,2,FALSE),0)>=4","v":false},{"$f":"IFERROR(VLOOKUP(VLOOKUP($D67,OFFSET(Block_Status,0,3,,6),6,FALSE),Utility_Status,2,FALSE),0)>=4","v":false},false]
["RVR","Zone-3A",1,{"$f":"B68&\"-\"&C68","v":"Zone-3A-1"},false,false,false,false,false,{"$f":"AND(E68:I68)","v":false},false,false,false,false,false,{"$f":"AND(K68:O68)","v":false}]
["RVR","Zone-3A",2,"Zone-3A-2",false,false,false,false,false,false,false,false,false,false,false,false]
["RVR","Zone-3A",3,"Zone-3A-3",false,false,false,false,false,false,false,false,false,false,false,false]
["RVR","Zone-3A",4,"Zone-3A-4",false,false,false,false,false,false,false,false,false,false,false,false]
["RVR","Zone-4",1,"Zone-4-1",false,false,false,false,false,false,false,false,false,false,false,false]
["RVR","Zone-4",2,"Zone-4-2",false,false,false,false,false,false,false,false,false,false,false,false]
["RVR","Zone-4",3,"Zone-4-3",false,false,false,false,false,false,false,false,false,false,false,false]
["RVR","Zone-4",4,"Zone-4-4",false,false,false,false,false,false,false,false,false,false,false,false]
["RVR","Zone-4",5,"Zone-4-5",false,false,false,false,false,false,false,false,false,false,false,false]
["RVR","Zone-4",6,"Zone-4-6",false,false,false,false,false,false,false,false,false,false,false,false]
["RVR","Zone-4",7,"Zone-4-7",false,false,false,false,false,false,false,false,false,false,false,false]
["RVR","Zone-5B",1,"Zone-5B-1",false,false,false,false,false,false,false,false,false,false,false,false]
["RVR","Zone-5B",2,"Zone-5B-2",false,false,false,false,false,false,false,false,false,false,false,false]
["RVR","Zone-5B",3,"Zone-5B-3",false,false,false,false,false,false,false,false,false,false,false,false]
["RVR","Zone-5B",4,"Zone-5B-4",false,false,false,false,false,false,false,false,false,false,false,false]

{"sheet":"Block-Status","index":2,"n_rows":82,"n_cols":26,"rows_kept":82,"cut":false,"hidden":false,"merged":[[0,0,1,0],[0,1,1,1],[0,2,1,2],[0,4,0,19],[0,3,1,3]]}
["Agency","Zone","Block","Zone-Block","Status",{"$nulls":15},"Design","Design Approved","Clash","Clash Approved","GFC","GFC Approved"]
[{"$nulls":4},"Water","Reuse","Storm","Sewer","Power","Water","Reuse","Storm","Sewer","Power","Average","Min","Max","Average","Minimum","Maximum",1,2,3,4,5,6]
["BSR","Zone-1A",8,{"$f":"B3&\"-\"&C3","v":"Zone-1A-8"},{"$nulls":5},{"$f":"IFERROR(VLOOKUP(E3,Utility_Status,2,FALSE),0)","v":0},{"$f":"IFERROR(VLOOKUP(F3,Utility_Status,2,FALSE),0)","v":0},{"$f":"IFERROR(VLOOKUP(G3,Utility_Status,2,FALSE),0)","v":0},{"$f":"IFERROR(VLOOKUP(H3,Utility_Status,2,FALSE),0)","v":0},{"$f":"IFERROR(VLOOKUP(I3,Utility_Status,2,FALSE),0)","v":0},{"$f":"AVERAGE(J3:N3)","v":0},{"$f":"MIN(J3:N3)","v":0},{"$f":"MAX(J3:N3)","v":0},{"$f":"IFERROR(INDEX(OFFSET(Utility_Status,0,0,,1),VLOOKUP($O3,OFFSET(Utility_Status,0,1,,1),TRUE),1),\"\")","v":""},{"$f":"IFERROR(INDEX(OFFSET(Utility_Status,0,0,,1),P3,1),\"\")","v":"Design"},{"$f":"IFERROR(INDEX(OFFSET(Utility_Status,0,0,,1),Q3,1),\"\")","v":"Design"},{"$f":"$P3>=U$2","v":false},{"$f":"$P3>=V$2","v":false},false,false,false,false]
["BSR","Zone-1A",9,{"$f":"B4&\"-\"&C4","v":"Zone-1A-9"},{"$nulls":14},"Design Approved","Design Approved",{"$f":"$P4>=U$2","v":false},false,false,false,false,false]
["BSR","Zone-1A",10,"Zone-1A-10",{"$nulls":14},"Clash","Clash",false,false,false,false,false,false]
["BSR","Zone-1A",11,"Zone-1A-11",{"$nulls":14},"Clash Approved","Clash Approved",false,false,false,false,false,false]
["BSR","Zone-1A",12,"Zone-1A-12",{"$nulls":14},"GFC","GFC",false,false,false,false,false,false]
["BSR","Zone-1B",1,"Zone-1B-1",{"$nulls":14},"GFC Approved","GFC Approved",false,false,false,false,false,false]
["BSR","Zone-1B",2,"Zone-1B-2",{"$nulls":16},false,false,false,false,false,false]
["BSR","Zone-1B",3,"Zone-1B-3",{"$nulls":16},false,false,false,false,false,false]
["BSR","Zone-1B",4,"Zone-1B-4",{"$nulls":16},false,false,false,false,false,false]
["BSR","Zone-1B",5,"Zone-1B-5",{"$nulls":16},false,false,false,false,false,false]
["BSR","Zone-1B",6,"Zone-1B-6",{"$nulls":16},false,false,false,false,false,false]
["BSR","Zone-1B",7,"Zone-1B-7",{"$nulls":16},false,false,false,false,false,false]
["BSR","Zone-2A",6,"Zone-2A-6",{"$nulls":16},false,false,false,false,false,false]
["BSR","Zone-2A",7,"Zone-2A-7",{"$nulls":16},false,false,false,false,false,false]
["BSR","Zone-2A",8,"Zone-2A-8",{"$nulls":16},false,false,false,false,false,false]
["BSR","Zone-2A",9,"Zone-2A-9",{"$nulls":16},false,false,false,false,false,false]
["BSR","Zone-2A",10,"Zone-2A-10",{"$nulls":16},false,false,false,false,false,false]
["BSR","Zone-2B",1,"Zone-2B-1",{"$nulls":16},false,false,false,false,false,false]
["BSR","Zone-2B",2,"Zone-2B-2",{"$nulls":16},false,false,false,false,false,false]
["BSR","Zone-2B",3,"Zone-2B-3",{"$nulls":16},false,false,false,false,false,false]
["BSR","Zone-2B",4,"Zone-2B-4",{"$nulls":16},false,false,false,false,false,false]
["BSR","Zone-2B",5,"Zone-2B-5",{"$nulls":16},false,false,false,false,false,false]
["BSR","Zone-5A",1,"Zone-5A-1",{"$nulls":16},false,false,false,false,false,false]
["BSR","Zone-5A",2,"Zone-5A-2",{"$nulls":16},false,false,false,false,false,false]
["BSR","Zone-5A",3,"Zone-5A-3",{"$nulls":16},false,false,false,false,false,false]
["BSR","Zone-5A",4,"Zone-5A-4",{"$nulls":16},false,false,false,false,false,false]
["BSR","Zone-5A",5,"Zone-5A-5",{"$nulls":16},false,false,false,false,false,false]
["BSR","Zone-5C",1,"Zone-5C-1",{"$nulls":16},false,false,false,false,false,false]
["BSR","Zone-5C",2,"Zone-5C-2",{"$nulls":16},false,false,false,false,false,false]
["BSR","Zone-5C",3,"Zone-5C-3",{"$nulls":16},false,false,false,false,false,false]
["BSR","Zone-5C",4,"Zone-5C-4",{"$nulls":16},false,false,false,false,false,false]
["BSR","Zone-5D",1,"Zone-5D-1",{"$nulls":16},false,false,false,false,false,false]
["BSR","Zone-5D",2,"Zone-5D-2",{"$nulls":16},false,false,false,false,false,false]
["BSR","Zone-5D",3,"Zone-5D-3",{"$nulls":16},{"$f":"$P36>=U$2","v":false},false,false,false,false,false]
["BSR","Zone-5D",4,"Zone-5D-4",{"$nulls":16},false,false,false,false,false,false]
["NCC","Zone-12",1,"Zone-12-1",{"$nulls":16},false,false,false,false,false,false]
["NCC","Zone-12",2,"Zone-12-2",{"$nulls":16},false,false,false,false,false,false]
["NCC","Zone-12",3,"Zone-12-3",{"$nulls":16},false,false,false,false,false,false]
["NCC","Zone-12",4,"Zone-12-4",{"$nulls":16},false,false,false,false,false,false]
["NCC","Zone-12",5,"Zone-12-5",{"$nulls":16},false,false,false,false,false,false]
["NCC","Zone-12",6,"Zone-12-6",{"$nulls":16},false,false,false,false,false,false]
["NCC","Zone-12",7,"Zone-12-7",{"$nulls":16},false,false,false,false,false,false]
["NCC","Zone-12",8,"Zone-12-8",{"$nulls":16},false,false,false,false,false,false]
["NCC","Zone-12",9,"Zone-12-9",{"$nulls":16},false,false,false,false,false,false]
["NCC","Zone-12",10,"Zone-12-10",{"$nulls":16},false,false,false,false,false,false]
["NCC","Zone-12",11,"Zone-12-11",{"$nulls":16},false,false,false,false,false,false]
["NCC","Zone-12",12,"Zone-12-12",{"$nulls":16},false,false,false,false,false,false]
["NCC","Zone-12",13,"Zone-12-13",{"$nulls":16},false,false,false,false,false,false]
["NCC","Zone-12",14,"Zone-12-14",{"$nulls":16},false,false,false,false,false,false]
["NCC","Zone-12",15,"Zone-12-15",{"$nulls":16},false,false,false,false,false,false]
["NCC","Zone-12",16,"Zone-12-16",{"$nulls":16},false,false,false,false,false,false]
["NCC","Zone-12",17,"Zone-12-17",{"$nulls":16},false,false,false,false,false,false]
["NCC","Zone-12",18,"Zone-12-18",{"$nulls":16},false,false,false,false,false,false]
["NCC","Zone-12",19,"Zone-12-19",{"$nulls":16},false,false,false,false,false,false]
["NCC","Zone-12",20,"Zone-12-20",{"$nulls":16},false,false,false,false,false,false]
["RVR","Zone-10",1,"Zone-10-1",{"$nulls":16},false,false,false,false,false,false]
["RVR","Zone-10",2,"Zone-10-2",{"$nulls":16},false,false,false,false,false,false]
["RVR","Zone-10",3,"Zone-10-3",{"$nulls":16},false,false,false,false,false,false]
["RVR","Zone-10",4,"Zone-10-4",{"$nulls":16},false,false,false,false,false,false]
["RVR","Zone-10",5,"Zone-10-5",{"$nulls":16},false,false,false,false,false,false]
["RVR","Zone-10",6,"Zone-10-6",{"$nulls":16},false,false,false,false,false,false]
["RVR","Zone-10",7,"Zone-10-7",{"$nulls":16},false,false,false,false,false,false]
["RVR","Zone-10",8,"Zone-10-8",{"$nulls":16},false,false,false,false,false,false]
["RVR","Zone-10",9,"Zone-10-9",{"$nulls":16},false,false,false,false,false,false]
["RVR","Zone-10",10,"Zone-10-10",{"$nulls":16},false,false,false,false,false,false]
["RVR","Zone-3A",1,{"$f":"B68&\"-\"&C68","v":"Zone-3A-1"},{"$nulls":16},false,false,false,false,false,false]
["RVR","Zone-3A",2,"Zone-3A-2",{"$nulls":16},false,false,false,false,false,false]
["RVR","Zone-3A",3,"Zone-3A-3",{"$nulls":16},false,false,false,false,false,false]
["RVR","Zone-3A",4,"Zone-3A-4",{"$nulls":16},false,false,false,false,false,false]
["RVR","Zone-4",1,"Zone-4-1",{"$nulls":16},false,false,false,false,false,false]
["RVR","Zone-4",2,"Zone-4-2",{"$nulls":16},false,false,false,false,false,false]
["RVR","Zone-4",3,"Zone-4-3",{"$nulls":16},false,false,false,false,false,false]
["RVR","Zone-4",4,"Zone-4-4",{"$nulls":16},false,false,false,false,false,false]
["RVR","Zone-4",5,"Zone-4-5",{"$nulls":16},false,false,false,false,false,false]
["RVR","Zone-4",6,"Zone-4-6",{"$nulls":16},false,false,false,false,false,false]
["RVR","Zone-4",7,"Zone-4-7",{"$nulls":16},false,false,false,{"$f":"$P78>=X$2","v":false},false,false]
["RVR","Zone-5B",1,"Zone-5B-1",{"$nulls":16},{"$f":"$P79>=U$2","v":false},false,false,false,false,false]
["RVR","Zone-5B",2,"Zone-5B-2",{"$nulls":16},false,false,false,false,false,false]
["RVR","Zone-5B",3,"Zone-5B-3",{"$nulls":16},false,false,false,false,false,false]
["RVR","Zone-5B",4,"Zone-5B-4",{"$nulls":16},false,false,false,false,false,false]

{"sheet":"Database","index":3,"n_rows":81,"n_cols":6,"rows_kept":81,"cut":false,"hidden":true,"merged":[[0,0,0,1]]}
["Utility-Status",null,null,"Agency","Zone","Block No."]
["Design",1,null,"BSR","Zone-1A",8]
["Design Approved",2,null,"BSR","Zone-1A",9]
["Clash",3,null,"BSR","Zone-1A",10]
["Clash Approved",4,null,"BSR","Zone-1A",11]
["GFC",5,null,"BSR","Zone-1A",12]
["GFC Approved",6,null,"BSR","Zone-1B",1]
[null,null,null,"BSR","Zone-1B",2]
[null,null,null,"BSR","Zone-1B",3]
[null,null,null,"BSR","Zone-1B",4]
[null,null,null,"BSR","Zone-1B",5]
[null,null,null,"BSR","Zone-1B",6]
[null,null,null,"BSR","Zone-1B",7]
[null,null,null,"BSR","Zone-2A",6]
[null,null,null,"BSR","Zone-2A",7]
[null,null,null,"BSR","Zone-2A",8]
[null,null,null,"BSR","Zone-2A",9]
[null,null,null,"BSR","Zone-2A",10]
[null,null,null,"BSR","Zone-2B",1]
[null,null,null,"BSR","Zone-2B",2]
[null,null,null,"BSR","Zone-2B",3]
[null,null,null,"BSR","Zone-2B",4]
[null,null,null,"BSR","Zone-2B",5]
[null,null,null,"BSR","Zone-5A",1]
[null,null,null,"BSR","Zone-5A",2]
[null,null,null,"BSR","Zone-5A",3]
[null,null,null,"BSR","Zone-5A",4]
[null,null,null,"BSR","Zone-5A",5]
[null,null,null,"BSR","Zone-5C",1]
[null,null,null,"BSR","Zone-5C",2]
[null,null,null,"BSR","Zone-5C",3]
[null,null,null,"BSR","Zone-5C",4]
[null,null,null,"BSR","Zone-5D",1]
[null,null,null,"BSR","Zone-5D",2]
[null,null,null,"BSR","Zone-5D",3]
[null,null,null,"BSR","Zone-5D",4]
[null,null,null,"NCC","Zone-12",1]
[null,null,null,"NCC","Zone-12",2]
[null,null,null,"NCC","Zone-12",3]
[null,null,null,"NCC","Zone-12",4]
[null,null,null,"NCC","Zone-12",5]
[null,null,null,"NCC","Zone-12",6]
[null,null,null,"NCC","Zone-12",7]
[null,null,null,"NCC","Zone-12",8]
[null,null,null,"NCC","Zone-12",9]
[null,null,null,"NCC","Zone-12",10]
[null,null,null,"NCC","Zone-12",11]
[null,null,null,"NCC","Zone-12",12]
[null,null,null,"NCC","Zone-12",13]
[null,null,null,"NCC","Zone-12",14]
[null,null,null,"NCC","Zone-12",15]
[null,null,null,"NCC","Zone-12",16]
[null,null,null,"NCC","Zone-12",17]
[null,null,null,"NCC","Zone-12",18]
[null,null,null,"NCC","Zone-12",19]
[null,null,null,"NCC","Zone-12",20]
[null,null,null,"RVR","Zone-10",1]
[null,null,null,"RVR","Zone-10",2]
[null,null,null,"RVR","Zone-10",3]
[null,null,null,"RVR","Zone-10",4]
[null,null,null,"RVR","Zone-10",5]
[null,null,null,"RVR","Zone-10",6]
[null,null,null,"RVR","Zone-10",7]
[null,null,null,"RVR","Zone-10",8]
[null,null,null,"RVR","Zone-10",9]
[null,null,null,"RVR","Zone-10",10]
[null,null,null,"RVR","Zone-3A",1]
[null,null,null,"RVR","Zone-3A",2]
[null,null,null,"RVR","Zone-3A",3]
[null,null,null,"RVR","Zone-3A",4]
[null,null,null,"RVR","Zone-4",1]
[null,null,null,"RVR","Zone-4",2]
[null,null,null,"RVR","Zone-4",3]
[null,null,null,"RVR","Zone-4",4]
[null,null,null,"RVR","Zone-4",5]
[null,null,null,"RVR","Zone-4",6]
[null,null,null,"RVR","Zone-4",7]
[null,null,null,"RVR","Zone-5B",1]
[null,null,null,"RVR","Zone-5B",2]
[null,null,null,"RVR","Zone-5B",3]
[null,null,null,"RVR","Zone-5B",4]